[Event "GM ZIA Smirity-A 2025"]
[Site "Dhaka"]
[Date "2025.02.19"]
[Round "5.9"]
[White "Swarnavo Choudhury"]
[Black "Tashriq Saihan, Shan"]
[Result "1/2-1/2"]
[Annotator "ChessBase"]
[ECO "C89"]
[WhiteElo "2120"]
[BlackElo "1974"]
[PlyCount "118"]
[EventDate "2025.02.17"]
[EventType "swiss"]
[EventCountry "BAN"]
[SourceTitle "playchess.com"]
[Source "ChessBase"]
[SourceQuality "1"]
[TimeControl "5400+30"]

1. e4 {[%emt 1:31:00]} e5 {[%emt 0:05:39]} 2. Nf3 {[%emt 0:00:00]} Nc6 {[%emt 0:00:33]} 3. Bb5 {[%emt 0:00:00]} a6 {[%emt 0:00:09]} 4. Ba4 {[%emt 0:00:00]} Nf6 {[%emt 0:00:10]} 5. O-O {[%emt 0:00:00]} Be7 {[%emt 0:00:38]} 6. Re1 {[%emt 0:00:00]} b5 {[%emt 0:00:10]} 7. Bb3 {[%emt 0:00:00]} O-O {[%emt 0:00:42]} 8. c3 {[%emt 0:00:00]} d5 {[%emt 0:00:17]} 9. exd5 {[%emt 0:00:00]} Nxd5 {[%emt 0:00:05]} 10. Nxe5 {[%emt 0:00:00]} Nxe5 {[%emt 0:00:07]} 11. Rxe5 {[%emt 0:00:00]} c6 {[%emt 0:00:10]} 12. d4 {[%emt 0:00:00]} Bd6 {[%emt 0:00:09]} 13. Re1 {[%emt 0:00:00]} Qh4 {[%emt 0:00:13]} 14. g3 {[%emt 0:00:00]} Qh3 {[%emt 0:00:13]} 15. Be3 {[%emt 0:00:00]} Ra7 {[%emt 0:00:46]} 16. Qd3 {[%emt 0:00:00]} Re7 {[%emt 0:02:26]} 17. Bxd5 {[%emt 0:00:00]} cxd5 {[%emt 0:02:11]} 18. Nd2 {[%emt 0:00:00]} Rfe8 {[%emt 0:02:04]} 19. a4 {[%emt 0:00:00]} Bf5 {[%emt 0:04:05]} 20. Qf1 {[%emt 0:00:00]} Qh5 {[%emt 0:00:28]} 21. axb5 {[%emt 0:00:00]} axb5 {[%emt 0:05:20]} 22. Qxb5 {[%emt 0:00:00]} Bd7 {[%emt 0:00:49]} 23. Qd3 {[%emt 0:00:00]} Bf5 {[%emt 0:02:03]} 24. Qa6 {[%emt 0:00:00]} Re6 {[%emt 0:01:06]} 25. Qb5 {[%emt 0:00:00]} Bg6 {[%emt 0:11:31]} 26. Ra6 {[%emt 0:00:00]} f5 {[%emt 0:02:21]} 27. Qxd5 {[%emt 0:00:00]} Bf7 {[%emt 0:00:32]} 28. Qf3 {[%emt 0:00:13]} Qh3 {[%emt 0:00:28]} 29. Qg2 {[%emt 0:01:16]} Qg4 {[%emt 0:00:38]} 30. Qf3 {[%emt 0:09:35]} Qh3 {[%emt 0:01:09]} 31. Nc4 {[%emt 0:03:01]} Bxg3 {[%emt 0:04:36]} 32. Qxg3 {[%emt 0:00:09]} Qxg3+ {[%emt 0:00:07]} 33. hxg3 {[%emt 0:00:07]} Rxa6 {[%emt 0:00:09]} 34. Ne5 {[%emt 0:00:18]} Bd5 {[%emt 0:01:56]} 35. Rc1 {[%emt 0:01:30]} Bb7 {[%emt 0:01:01]} 36. b4 {[%emt 0:00:22]} Rea8 {[%emt 0:00:37]} 37. Kf1 {[%emt 0:00:46]} Ra1 {[%emt 0:09:16]} 38. Rxa1 {[%emt 0:00:07]} Rxa1+ {[%emt 0:00:02]} 39. Ke2 {[%emt 0:00:08]} Be4 {[%emt 0:00:37]} 40. b5 {[%emt 0:00:45]} Ra2+ {[%emt 0:01:11]} 41. Bd2 {[%emt 0:00:46]} g5 {[%emt 0:02:49]} 42. f3 {[%emt 0:00:07]} Bb7 {[%emt 0:04:57]} 43. Kd3 {[%emt 0:00:20]} h6 {[%emt 0:00:34]} 44. c4 {[%emt 0:00:06]} Ra3+ {[%emt 0:00:27]} 45. Ke2 {[%emt 0:00:17]} Rb3 {[%emt 0:00:58]} 46. d5 {[%emt 0:01:29]} Bxd5 {[%emt 0:00:48]} 47. cxd5 {[%emt 0:00:05]} Rxb5 {[%emt 0:00:08]} 48. Nc6 {[%emt 0:00:09]} Kf7 {[%emt 0:00:23]} 49. Nb4 {[%emt 0:00:23]} h5 {[%emt 0:02:03]} 50. Kd3 {[%emt 0:00:05]} h4 {[%emt 0:01:10]} 51. gxh4 {[%emt 0:00:04]} gxh4 {[%emt 0:00:05]} 52. Kc4 {[%emt 0:00:54]} h3 {[%emt 0:02:14]} 53. Bf4 {[%emt 0:00:03]} Ra5 {[%emt 0:00:09]} 54. Kd4 {[%emt 0:01:40]} Ke8 {[%emt 0:00:52]} 55. Nd3 {[%emt 0:00:32]} Ra2 {[%emt 0:01:48]} 56. Ke5 {[%emt 0:00:15]} Ra3 {[%emt 0:01:15]} 57. Kd4 {[%emt 0:00:53]} Ra2 {[%emt 0:00:28]} 58. Ke5 {[%emt 0:00:53]} Ra3 {[%emt 0:00:14]} 59. Kd4 {[%emt 0:00:16]} Ra2 {[%emt 0:00:14]} 1/2-1/2

[Event "GM ZIA Smirity-A 2025"]
[Site "Dhaka"]
[Date "2025.02.19"]
[Round "5.10"]
[White "Md., Sharif Hossain"]
[Black "Islam, M.M. Zahirul"]
[Result "1-0"]
[Annotator "NA"]
[ECO "C11"]
[WhiteElo "2075"]
[BlackElo "1912"]
[PlyCount "173"]
[EventDate "2025.02.17"]
[EventType "swiss"]
[EventCountry "BAN"]
[SourceTitle "playchess.com"]
[Source "ChessBase"]
[SourceQuality "1"]
[TimeControl "5400+30"]

1. e4 {[%emt 0:04:57]} e6 {[%emt 0:33:05]} 2. d4 {[%emt 0:01:31]} d5 {[%emt 0:00:09]} 3. Nc3 {[%emt 0:00:05]} Nf6 {[%emt 0:00:09]} 4. e5 {[%emt 0:00:12]} Nfd7 {[%emt 0:00:03]} 5. f4 {[%emt 0:00:12]} c5 {[%emt 0:00:07]} 6. Nf3 {[%emt 0:00:03]} Nc6 {[%emt 0:00:07]} 7. Be3 {[%emt 0:00:07]} Be7 {[%emt 0:01:26]} 8. a3 {[%emt 0:00:17]} O-O {[%emt 0:00:35]} 9. Qd2 {[%emt 0:01:06]} a6 {[%emt 0:00:24]} 10. dxc5 {[%emt 0:01:25]} Bxc5 {[%emt 0:02:00]} 11. Bxc5 {[%emt 0:00:35]} Nxc5 {[%emt 0:00:02]} 12. b4 {[%emt 0:00:19]} Nd7 {[%emt 0:04:32]} 13. Ne2 {[%emt 0:03:55]} Nb6 {[%emt 0:03:28]} 14. Ned4 {[%emt 0:03:20]} Bd7 {[%emt 0:01:50]} 15. Bd3 {[%emt 0:00:49]} Nxd4 {[%emt 0:00:02]} 16. Nxd4 {[%emt 0:00:15]} Rc8 {[%emt 0:01:16]} 17. Qf2 {[%emt 0:00:59]} Nc4 {[%emt 0:00:43]} 18. O-O {[%emt 0:02:25]} Nb2 {[%emt 0:03:05]} 19. Be2 {[%emt 0:02:00]} f6 {[%emt 0:00:18]} 20. Bg4 {[%emt 0:01:24]} f5 {[%emt 0:01:57]} 21. Be2 {[%emt 0:01:27]} Qe7 {[%emt 0:05:30]} 22. Rfb1 {[%emt 0:00:30]} Na4 {[%emt 0:00:24]} 23. Rb3 {[%emt 0:01:30]} Rc3 {[%emt 0:02:03]} 24. Bd3 {[%emt 0:00:46]} Rfc8 {[%emt 0:00:29]} 25. Rab1 {[%emt 0:04:11]} b5 {[%emt 0:00:54]} 26. Ne2 {[%emt 0:00:41]} R3c7 {[%emt 0:01:04]} 27. Qd4 {[%emt 0:01:09]} Qh4 {[%emt 0:01:47]} 28. Rf1 {[%emt 0:01:18]} Be8 {[%emt 0:00:27]} 29. Qe3 {[%emt 0:02:42]} h6 {[%emt 0:04:11]} 30. h3 {[%emt 0:02:24]} Kh8 {[%emt 0:02:03]} 31. Kh2 {[%emt 0:01:44]} Bh5 {[%emt 0:02:49]} 32. Nd4 {[%emt 0:00:22]} Qe7 {[%emt 0:00:34]} 33. Rg1 {[%emt 0:02:06]} Rc3 {[%emt 0:01:41]} 34. g4 {[%emt 0:02:14]} fxg4 {[%emt 0:00:34]} 35. Rxc3 {[%emt 0:06:31]} Rxc3 {[%emt 0:01:00]} 36. Qg3 {[%emt 0:06:24]} Bg6 {[%emt 0:08:35]} 37. Qxg4 {[%emt 0:01:28]} Bxd3 {[%emt 0:01:51]} 38. cxd3 {[%emt 0:00:07]} Rxd3 {[%emt 0:01:55]} 39. Nxe6 {[%emt 0:00:45]} Rd2+ {[%emt 0:00:20]} 40. Kh1 {[%emt 0:02:47]} d4 {[%emt 0:00:03]} 41. Qxg7+ {[%emt 0:01:46]} Qxg7 {[%emt 0:00:21]} 42. Nxg7 {[%emt 0:00:34]} Nc3 {[%emt 0:01:47]} 43. Nh5 {[%emt 0:03:09]} Ne4 {[%emt 0:03:37]} 44. Rg2 {[%emt 0:02:42]} Rd1+ {[%emt 0:02:21]} 45. Kh2 {[%emt 0:00:27]} d3 {[%emt 0:00:06]} 46. Nf6 {[%emt 0:02:23]} Nxf6 {[%emt 0:01:03]} 47. exf6 {[%emt 0:00:02]} Rc1 {[%emt 0:08:05]} 48. f7 {[%emt 0:00:33]} Rc8 {[%emt 0:00:02]} 49. Rd2 {[%emt 0:04:19]} Kg7 {[%emt 0:00:02]} 50. Rxd3 {[%emt 0:00:16]} Rc6 {[%emt 0:01:06]} 51. Kg3 {[%emt 0:00:35]} Kxf7 {[%emt 0:00:04]} 52. Kg4 {[%emt 0:00:26]} Kg6 {[%emt 0:00:09]} 53. Rd5 {[%emt 0:00:11]} Kg7 {[%emt 0:00:32]} 54. Kf5 {[%emt 0:01:16]} Rc3 {[%emt 0:01:10]} 55. Rd7+ {[%emt 0:00:09]} Kf8 {[%emt 0:00:15]} 56. Rd6 {[%emt 0:00:56]} Rxa3 {[%emt 0:00:43]} 57. Rxh6 {[%emt 0:00:06]} Kg7 {[%emt 0:00:40]} 58. Rg6+ {[%emt 0:00:21]} Kf7 {[%emt 0:00:16]} 59. h4 {[%emt 0:00:41]} a5 {[%emt 0:00:25]} 60. Rb6 {[%emt 0:00:50]} axb4 {[%emt 0:00:04]} 61. Rb7+ {[%emt 0:00:25]} Kg8 {[%emt 0:00:13]} 62. Rxb5 {[%emt 0:00:19]} Rb3 {[%emt 0:00:38]} 63. h5 {[%emt 0:02:38]} Rb1 {[%emt 0:00:32]} 64. Kg6 {[%emt 0:00:20]} Rg1+ {[%emt 0:00:17]} 65. Kf6 {[%emt 0:00:25]} Rb1 {[%emt 0:00:10]} 66. Rg5+ {[%emt 0:01:35]} Kh7 {[%emt 0:00:55]} 67. Rb5 {[%emt 0:01:16]} b3 {[%emt 0:00:40]} 68. Rb7+ {[%emt 0:01:17]} Kh6 {[%emt 0:00:39]} 69. Kf5 {[%emt 0:01:59]} b2 {[%emt 0:01:19]} 70. Rb3 {[%emt 0:01:30]} Kh7 {[%emt 0:00:23]} 71. Rb6 {[%emt 0:02:15]} Kg7 {[%emt 0:00:40]} 72. Rg6+ {[%emt 0:00:51]} Kh7 {[%emt 0:00:02]} 73. Rg2 {[%emt 0:00:24]} Kh6 {[%emt 0:01:13]} 74. Rh2 {[%emt 0:00:43]} Kg7 {[%emt 0:00:01]} 75. Rf2 {[%emt 0:02:13]} Kh6 {[%emt 0:00:30]} 76. Rg2 {[%emt 0:01:08]} Kh7 {[%emt 0:00:24]} 77. Kg5 {[%emt 0:01:08]} Kg7 {[%emt 0:00:23]} 78. h6+ {[%emt 0:01:19]} Kh7 {[%emt 0:00:07]} 79. f5 {[%emt 0:00:17]} Kg8 {[%emt 0:03:03]} 80. Kg6 {[%emt 0:03:00]} Kh8 {[%emt 0:00:25]} 81. f6 {[%emt 0:02:07]} Kg8 {[%emt 0:00:19]} 82. f7+ {[%emt 0:03:12]} Kf8 {[%emt 0:00:03]} 83. h7 {[%emt 0:00:18]} Rh1 {[%emt 0:00:03]} 84. h8=Q+ {[%emt 0:01:24]} Rxh8 {[%emt 0:00:03]} 85. Rxb2 {[%emt 0:00:05]} Rh1 {[%emt 0:01:28]} 86. Rb8+ {[%emt 0:00:09]} Ke7 {[%emt 0:00:06]} 87. f8=Q+ {[%emt 0:00:10]} 1-0

[Event "GM ZIA Smirity-A 2025"]
[Site "Dhaka"]
[Date "2025.02.19"]
[Round "5.11"]
[White "Rayan Rashid Mugdho"]
[Black "Ghosh, Chanchal Kumer"]
[Result "0-1"]
[Annotator "NA"]
[ECO "B08"]
[WhiteElo "1861"]
[BlackElo "2041"]
[PlyCount "103"]
[EventDate "2025.02.17"]
[EventType "swiss"]
[EventCountry "BAN"]
[SourceTitle "playchess.com"]
[Source "ChessBase"]
[SourceQuality "1"]
[TimeControl "5400+30"]

1. e4 {[%emt 0:00:04]} d6 {[%emt 0:22:51]} 2. d4 {[%emt 0:00:39]} g6 {[%emt 0:00:07]} 3. Nc3 {[%emt 0:00:59]} Bg7 {[%emt 0:00:03]} 4. Nf3 {[%emt 0:00:47]} Nf6 {[%emt 0:00:15]} 5. Bc4 {[%emt 0:00:45]} O-O {[%emt 0:00:16]} 6. Bf4 {[%emt 0:01:55]} Nxe4 {[%emt 1:09:58]} 7. Nxe4 {[%emt 0:01:51]} d5 {[%emt 0:00:00]} 8. Bd3 {[%emt 0:05:32]} dxe4 {[%emt 0:00:00]} 9. Bxe4 {[%emt 0:00:12]} c5 {[%emt 0:00:00]} 10. Qd2 {[%emt 0:11:28]} cxd4 {[%emt 0:00:00]} 11. O-O-O {[%emt 0:00:53]} Nd7 {[%emt 0:00:00]} 12. Bh6 {[%emt 0:12:28]} e5 {[%emt 0:00:00]} 13. Bd5 {[%emt 0:13:23]} Nf6 {[%emt 0:00:00]} 14. Bxg7 {[%emt 0:00:26]} Kxg7 {[%emt 0:00:00]} 15. Bb3 {[%emt 0:00:26]} Bg4 {[%emt 0:00:00]} 16. Qg5 {[%emt 0:05:28]} Bxf3 {[%emt 0:00:00]} 17. gxf3 {[%emt 0:00:52]} Re8 {[%emt 0:00:00]} 18. Rhe1 {[%emt 0:06:57]} h6 {[%emt 0:00:00]} 19. Qh4 {[%emt 0:05:00]} Qd6 {[%emt 0:00:00]} 20. Rg1 {[%emt 0:03:15]} b5 {[%emt 0:00:00]} 21. Rg3 {[%emt 0:08:15]} a5 {[%emt 0:00:00]} 22. Rdg1 {[%emt 0:02:03]} a4 {[%emt 0:00:00]} 23. Bxf7 {[%emt 0:00:52]} Kxf7 {[%emt 0:00:00]} 24. Qxh6 {[%emt 0:00:30]} Rg8 {[%emt 0:00:00]} 25. Rxg6 {[%emt 0:00:22]} Rxg6 {[%emt 0:00:00]} 26. Qxg6+ {[%emt 0:00:37]} Ke6 {[%emt 0:00:00]} 27. Rg5 {[%emt 0:02:48]} Rg8 {[%emt 0:00:00]} 28. Qf5+ {[%emt 0:00:12]} Kd5 {[%emt 0:11:00]} 29. Rxg8 {[%emt 0:02:17]} Nxg8 {[%emt 0:00:00]} 30. Qf7+ Qe6 {[%emt 0:00:00]} 31. Qb7+ Kc5 {[%emt 0:01:30]} 32. Qc7+ {[%emt 0:01:12]} Kd5 {[%emt 0:00:30]} 33. Qb7+ {[%emt 0:03:35]} Kd6 {[%emt 0:00:30]} 34. Qxb5 {[%emt 0:00:56]} Qxa2 {[%emt 0:00:00]} 35. Qb8+ {[%emt 0:00:25]} Kd7 {[%emt 0:00:00]} 36. Qxe5 {[%emt 0:01:23]} Qc4 {[%emt 0:00:00]} 37. Qg7+ {[%emt 0:01:30]} Ne7 {[%emt 0:00:00]} 38. Qg4+ {[%emt 0:00:10]} Kd8 {[%emt 0:00:00]} 39. Qg3 {[%emt 0:00:56]} Qb4 {[%emt 0:00:00]} 40. Qe5 {[%emt 0:02:04]} Nc6 {[%emt 0:00:00]} 41. Qe4 {[%emt 0:01:48]} Qc4 {[%emt 0:00:00]} 42. Kd2 {[%emt 0:01:11]} Kc7 {[%emt 0:00:00]} 43. h4 {[%emt 0:00:48]} Qf1 {[%emt 0:00:00]} 44. Qe2 {[%emt 0:01:03]} Qb1 {[%emt 0:00:00]} 45. Qa6 {[%emt 0:01:41]} Qxb2 {[%emt 0:00:00]} 46. Qxa4 {[%emt 0:00:17]} Qc3+ {[%emt 0:00:33]} 47. Ke2 {[%emt 0:00:15]} Qc5 {[%emt 0:00:49]} 48. Qb3 {[%emt 0:00:45]} Qe7+ {[%emt 0:00:27]} 49. Kf1 {[%emt 0:00:29]} Qxh4 {[%emt 0:00:10]} 50. Qf7+ {[%emt 0:00:09]} Kd6 {[%emt 0:00:38]} 51. Qf8+ {[%emt 0:00:18]} Kd5 {[%emt 0:06:23]} 52. Qf5+ {[%emt 0:00:00]} 0-1

[Event "GM ZIA Smirity-A 2025"]
[Site "Dhaka"]
[Date "2025.02.19"]
[Round "5.12"]
[White "Chowdhury, Sohel"]
[Black "Safayat, Kibria Azaan"]
[Result "1/2-1/2"]
[Annotator "NA"]
[ECO "C78"]
[WhiteElo "2018"]
[BlackElo "1850"]
[PlyCount "119"]
[EventDate "2025.02.17"]
[EventType "swiss"]
[EventCountry "BAN"]
[SourceTitle "playchess.com"]
[Source "ChessBase"]
[SourceQuality "1"]
[TimeControl "5400+30"]

1. e4 {[%emt 0:00:28]} e5 {[%emt 0:00:03]} 2. Nf3 {[%emt 0:00:17]} Nc6 {[%emt 0:00:02]} 3. Bb5 {[%emt 0:00:24]} a6 {[%emt 0:00:08]} 4. Ba4 {[%emt 0:00:10]} Nf6 {[%emt 0:00:16]} 5. O-O {[%emt 0:00:15]} b5 {[%emt 0:00:33]} 6. Bb3 {[%emt 0:00:02]} Bb7 {[%emt 0:00:24]} 7. Re1 {[%emt 0:00:54]} Bc5 {[%emt 0:00:16]} 8. c3 {[%emt 0:01:11]} d6 {[%emt 0:00:06]} 9. d4 {[%emt 0:04:01]} Bb6 {[%emt 0:00:11]} 10. a4 {[%emt 0:03:56]} h6 {[%emt 0:01:53]} 11. h3 {[%emt 0:00:32]} O-O {[%emt 0:00:08]} 12. d5 {[%emt 0:17:47]} Ne7 {[%emt 0:02:09]} 13. Be3 {[%emt 0:00:22]} Bxe3 {[%emt 0:02:05]} 14. Rxe3 {[%emt 0:00:04]} Nd7 {[%emt 0:01:41]} 15. Nbd2 {[%emt 0:12:27]} f5 {[%emt 0:00:31]} 16. exf5 {[%emt 0:01:24]} Nxf5 {[%emt 1:28:04]} 17. Re1 {[%emt 0:02:27]} Nc5 {[%emt 0:00:00]} 18. Ne4 {[%emt 0:02:04]} Nxe4 {[%emt 0:00:00]} 19. Rxe4 {[%emt 0:01:34]} Kh8 {[%emt 0:00:00]} 20. Qd3 {[%emt 0:50:11]} c5 {[%emt 0:00:00]} 21. dxc6 {[%emt 0:00:00]} Bxc6 {[%emt 0:00:00]} 22. Bd5 {[%emt 0:00:00]} Bxd5 {[%emt 0:00:00]} 23. Qxd5 {[%emt 0:00:00]} Qb6 {[%emt 0:00:00]} 24. Rb4 {[%emt 0:00:00]} Ng3 {[%emt 0:00:00]} 25. Re1 {[%emt 0:00:00]} Nh5 {[%emt 0:00:00]} 26. axb5 {[%emt 0:00:00]} Nf4 {[%emt 0:00:00]} 27. Rxf4 {[%emt 0:00:00]} exf4 {[%emt 0:00:00]} 28. Nh4 {[%emt 0:00:00]} Qxb5 {[%emt 0:00:00]} 29. Ng6+ {[%emt 0:00:00]} Kh7 {[%emt 0:00:00]} 30. Nxf8+ {[%emt 0:00:00]} Rxf8 {[%emt 0:00:00]} 31. Qxd6 {[%emt 0:00:00]} Rf6 {[%emt 0:00:00]} 32. Qd2 {[%emt 0:00:00]} f3 {[%emt 0:00:00]} 33. Re3 {[%emt 0:00:00]} fxg2 {[%emt 0:00:00]} 34. Qd3+ {[%emt 0:00:00]} Qxd3 {[%emt 0:00:00]} 35. Rxd3 {[%emt 0:00:00]} Rb6 {[%emt 0:00:00]} 36. b4 {[%emt 0:00:00]} a5 {[%emt 0:00:00]} 37. bxa5 {[%emt 0:00:00]} Ra6 {[%emt 0:00:00]} 38. Kxg2 {[%emt 0:00:55]} Rxa5 {[%emt 0:00:00]} 39. Kf3 {[%emt 0:00:23]} Re5 {[%emt 0:00:00]} 40. c4 {[%emt 0:00:27]} Rc5 {[%emt 0:00:00]} 41. Rc3 {[%emt 0:00:08]} g5 {[%emt 0:00:00]} 42. Ke4 {[%emt 0:00:21]} Kg6 {[%emt 0:00:00]} 43. Kd4 {[%emt 0:00:09]} Rf5 {[%emt 0:00:00]} 44. c5 {[%emt 0:02:27]} Rxf2 {[%emt 0:00:00]} 45. c6 {[%emt 0:00:01]} Rf8 {[%emt 0:00:00]} 46. c7 {[%emt 0:00:02]} Rc8 {[%emt 0:00:00]} 47. Ke5 {[%emt 0:08:37]} Kh5 {[%emt 0:00:00]} 48. Kd6 {[%emt 0:00:00]} Kh4 {[%emt 0:00:00]} 49. Kd7 {[%emt 0:00:00]} Rh8 {[%emt 0:00:00]} 50. c8=Q {[%emt 0:00:00]} Rxc8 {[%emt 0:00:00]} 51. Rxc8 {[%emt 0:00:27]} Kxh3 {[%emt 0:00:00]} 52. Ke6 {[%emt 0:00:31]} g4 {[%emt 0:00:00]} 53. Kf5 {[%emt 0:01:01]} g3 {[%emt 0:00:00]} 54. Kf4 {[%emt 0:00:47]} g2 {[%emt 0:00:00]} 55. Rc3+ {[%emt 0:00:39]} Kh2 {[%emt 0:00:00]} 56. Rc2 {[%emt 0:00:15]} Kh1 {[%emt 0:00:00]} 57. Rxg2 {[%emt 0:00:40]} Kxg2 {[%emt 0:00:00]} 58. Kg4 {[%emt 0:00:01]} Kf2 {[%emt 0:21:00]} 59. Kh5 {[%emt 0:00:02]} Kg3 {[%emt 0:00:00]} 60. Kxh6 {[%emt 0:00:04]} 1/2-1/2

[Event "GM ZIA Smirity-A 2025"]
[Site "Dhaka"]
[Date "2025.02.19"]
[Round "5.13"]
[White "Hamid, Rani"]
[Black "Aiyan, Rahman"]
[Result "*"]
[Annotator "NA"]
[ECO "B01"]
[WhiteElo "1913"]
[BlackElo "1827"]
[PlyCount "36"]
[EventDate "2025.02.17"]
[EventType "swiss"]
[EventCountry "BAN"]
[SourceTitle "playchess.com"]
[Source "ChessBase"]
[SourceQuality "1"]
[TimeControl "5400+30"]

1. e4 {[%emt 0:00:13]} d5 {[%emt 0:00:12]} 2. exd5 {[%emt 0:00:07]} Qd7 {[%emt 1:31:18]} 3. d6 Qxd6 {[%emt 0:00:00]} 4. Nc3 {[%emt 0:00:48]} Qd5 {[%emt 0:00:00]} 5. d4 {[%emt 0:01:04]} Qa5 {[%emt 0:00:00]} 6. Nf3 {[%emt 0:00:21]} c6 {[%emt 0:00:00]} 7. Bd3 {[%emt 0:02:21]} Nf6 {[%emt 0:00:00]} 8. O-O {[%emt 0:01:07]} Bg4 {[%emt 0:00:00]} 9. Re1 {[%emt 0:00:30]} e6 {[%emt 0:00:00]} 10. h3 {[%emt 0:01:25]} Bd6 {[%emt 0:00:00]} 11. a3 {[%emt 0:02:04]} Bh5 {[%emt 0:00:00]} 12. Be3 {[%emt 0:02:29]} Nbd7 {[%emt 0:00:00]} 13. Qe2 {[%emt 0:05:05]} Qc7 {[%emt 0:00:00]} 14. Bg5 {[%emt 0:02:24]} O-O-O {[%emt 0:00:00]} 15. Bxf6 {[%emt 0:00:25]} h6 {[%emt 0:00:00]} 16. Ne4 gxf6 {[%emt 0:00:00]} 17. b4 {[%emt 0:04:10]} Bf4 {[%emt 0:00:00]} 18. Nc5 {[%emt 0:06:08]} e5 {[%emt 0:00:00]} *

[Event "GM ZIA Smirity-A 2025"]
[Site "Dhaka"]
[Date "2025.02.19"]
[Round "5.13"]
[White "Hamid, Rani"]
[Black "Aiyan, Rahman"]
[Result "1-0"]
[Annotator "NA"]
[ECO "B01"]
[WhiteElo "1913"]
[BlackElo "1827"]
[PlyCount "139"]
[EventDate "2025.02.17"]
[EventType "swiss"]
[EventCountry "BAN"]
[SourceTitle "playchess.com"]
[Source "ChessBase"]
[SourceQuality "1"]
[TimeControl "5400+30"]

1. e4 {[%emt 0:00:13]} d5 {[%emt 0:00:12]} 2. exd5 {[%emt 0:00:07]} Qxd5 {[%emt 0:00:03]} 3. Nc3 {[%emt 0:00:18]} Qa5 {[%emt 0:00:07]} 4. d4 {[%emt 0:01:04]} c6 {[%emt 0:00:09]} 5. Nf3 {[%emt 0:00:21]} Nf6 {[%emt 0:00:13]} 6. Bd3 {[%emt 0:02:21]} Bg4 {[%emt 0:05:31]} 7. O-O {[%emt 0:01:07]} e6 {[%emt 0:02:48]} 8. Re1 {[%emt 0:00:30]} Bd6 {[%emt 0:02:29]} 9. h3 {[%emt 0:01:25]} Bh5 {[%emt 0:02:56]} 10. a3 {[%emt 0:02:04]} Nbd7 {[%emt 0:02:02]} 11. Be3 {[%emt 0:02:29]} Qc7 {[%emt 0:06:03]} 12. Qe2 {[%emt 0:05:05]} O-O-O {[%emt 0:03:28]} 13. Bg5 {[%emt 0:02:24]} h6 {[%emt 0:15:57]} 14. Bxf6 {[%emt 0:00:25]} gxf6 {[%emt 0:00:24]} 15. Ne4 {[%emt 0:01:36]} Bf4 {[%emt 0:06:27]} 16. b4 {[%emt 0:02:34]} e5 {[%emt 0:34:24]} 17. Nc5 {[%emt 0:06:08]} Nxc5 {[%emt 0:02:29]} 18. dxc5 {[%emt 0:00:37]} Rhg8 {[%emt 0:01:23]} 19. Bf5+ {[%emt 0:01:47]} Kb8 {[%emt 0:00:30]} 20. Rad1 {[%emt 0:00:10]} Rg5 {[%emt 0:02:32]} 21. g4 {[%emt 0:00:50]} Rxf5 {[%emt 0:05:00]} 22. gxf5 {[%emt 0:01:06]} Rg8+ {[%emt 0:00:17]} 23. Kh1 {[%emt 0:00:10]} Qc8 {[%emt 0:00:03]} 24. Qd3 {[%emt 0:02:43]} Qxf5 {[%emt 0:00:54]} 25. Nh4 {[%emt 0:02:39]} Qc8 {[%emt 0:02:15]} 26. Qd6+ {[%emt 0:03:18]} Ka8 {[%emt 0:00:06]} 27. Qd7 {[%emt 0:02:17]} Bxd1 {[%emt 0:03:37]} 28. Qxc8+ {[%emt 0:00:10]} Rxc8 {[%emt 0:00:02]} 29. Rxd1 {[%emt 0:00:15]} Kb8 {[%emt 0:00:07]} 30. Nf5 {[%emt 0:00:12]} Kc7 {[%emt 0:01:11]} 31. Rd6 {[%emt 0:00:37]} Rd8 {[%emt 0:00:34]} 32. Rxf6 {[%emt 0:00:12]} Rd7 {[%emt 0:00:50]} 33. Nd6 {[%emt 0:02:01]} Bg5 {[%emt 0:00:45]} 34. Rf5 {[%emt 0:02:10]} f6 {[%emt 0:00:29]} 35. Kg2 {[%emt 0:00:03]} h5 {[%emt 0:00:23]} 36. Kf3 {[%emt 0:00:27]} b6 {[%emt 0:00:34]} 37. Ne4 {[%emt 0:00:50]} bxc5 {[%emt 0:00:31]} 38. Nxc5 {[%emt 0:01:36]} Rd2 {[%emt 0:01:08]} 39. c3 {[%emt 0:01:57]} Ra2 {[%emt 0:00:34]} 40. a4 {[%emt 0:00:32]} Ra3 {[%emt 0:00:06]} 41. Ne4 {[%emt 0:00:59]} h4 {[%emt 0:00:55]} 42. a5 {[%emt 0:00:34]} Kd7 {[%emt 0:00:22]} 43. Nxg5 {[%emt 0:03:05]} Rxc3+ {[%emt 0:00:21]} 44. Kg2 {[%emt 0:00:02]} fxg5 {[%emt 0:00:07]} 45. Rxg5 {[%emt 0:00:12]} Rc4 {[%emt 0:00:19]} 46. Rg7+ {[%emt 0:00:07]} Kd6 {[%emt 0:00:15]} 47. Rb7 {[%emt 0:01:18]} a6 {[%emt 0:00:20]} 48. Rb6 {[%emt 0:00:32]} Kd5 {[%emt 0:00:09]} 49. Rb8 {[%emt 0:00:35]} Kd4 {[%emt 0:02:39]} 50. Kf3 {[%emt 0:00:52]} Kc3 {[%emt 0:00:00]} 51. Rb6 {[%emt 0:00:09]} Kb3 {[%emt 0:00:00]} 52. Rxa6 {[%emt 0:01:30]} Kxb4 {[%emt 0:00:00]} 53. Ra8 {[%emt 0:00:06]} Kb5 {[%emt 0:02:00]} 54. a6 {[%emt 0:00:16]} Kb6 {[%emt 0:00:00]} 55. a7 {[%emt 0:02:05]} Kb7 {[%emt 0:00:00]} 56. Re8 {[%emt 0:00:04]} Kxa7 {[%emt 0:00:00]} 57. Rxe5 {[%emt 0:00:13]} Kb6 {[%emt 0:00:00]} 58. Ke2 {[%emt 0:04:50]} Rc2+ {[%emt 0:00:00]} 59. Kf3 {[%emt 0:00:15]} Rc4 {[%emt 0:00:00]} 60. Ke2 {[%emt 0:00:07]} Rc2+ {[%emt 0:00:25]} 61. Kf3 {[%emt 0:00:05]} Rc4 {[%emt 0:00:03]} 62. Ke2 {[%emt 0:00:09]} c5 {[%emt 0:00:51]} 63. Kd3 {[%emt 0:00:13]} Rd4+ {[%emt 0:00:23]} 64. Ke3 {[%emt 0:00:18]} Ra4 {[%emt 0:00:06]} 65. f3 {[%emt 0:01:00]} Kb5 {[%emt 0:00:18]} 66. Rh5 {[%emt 0:00:20]} Rb4 {[%emt 0:02:39]} 67. Rg5 {[%emt 0:00:12]} Rb3+ {[%emt 0:00:33]} 68. Ke4 {[%emt 0:02:37]} Kb4 {[%emt 0:00:30]} 69. Rg4 {[%emt 0:00:23]} c4 70. Rg5 {[%emt 0:00:58]} 1-0